[Event "IX Famalicao Open 2022"]
[Site "Vila Nova de Famalicao"]
[Date "2022.07.25"]
[Round "1.1"]
[White "Martinez Duany, Lelys Stanley"]
[Black "Pereira, Rodrigo Fernandes"]
[Result "1-0"]
[ECO "B24"]
[WhiteElo "2497"]
[BlackElo "1880"]
[Annotator "TA"]
[PlyCount "43"]
[EventDate "2022.07.25"]
[EventType "tourn"]
[EventCountry "POR"]
[SourceTitle "playchess.com"]
[Source "ChessBase"]
[SourceQuality "1"]
[TimeControl "5400+30"]

{[%evp 9,43,23,78,20,29,29,111,108,145,102,146,137,140,116,200,117,239,244,217,170,191,181,312,307,307,300,300,291,389,385,444,435,511,502,1372,1313]} 1. e4 c5 2. Nc3 Nc6 3. Bb5 e6 4. Bxc6 bxc6 5. d3 g6 {[#]} (5... d5 $11 {keeps the balance.}) 6. h4 $146 {B23: Closed Sicilian: Lines without g3.} (6. e5 $16) ({Predecessor:} 6. f4 Ne7 7. Nf3 Bg7 8. O-O Rb8 9. Qe1 O-O 10. b3 d6 11. Rb1 f5 12. Bd2 Qc7 13. e5 d5 14. Na4 c4 15. Ba5 Qd7 16. Nc5 Qe8 17. bxc4 Rxb1 18. Qxb1 {1-0 (18) Hros,R (2199)-Ihnat,M (2065) Topolcany 2020}) 6... Bg7 $11 7. h5 Bxc3+ (7... d6 $11) 8. bxc3 $16 {White is better.} g5 9. e5 h6 10. Nf3 Ne7 11. Nd2 {[%cal Of2f4]} Qc7 (11... O-O $16) 12. Nc4 (12. Qe2 $18) 12... Ba6 {This move loses the game for Black.} (12... Nf5 $16) 13. Nd6+ $18 Kf8 14. O-O {Hoping for f4.} ({Much less strong is} 14. Qf3 $6 f5 $16) 14... Nf5 15. Be3 {[%cal Bc1e3,Be3c5,Bc5d6,Bd6e5][%mdl 32]} Nxd6 (15... c4 {was worth a try.} 16. Bc5 (16. dxc4 Nxd6 17. Bc5 Kg8 $16) (16. Nxc4 Bxc4 17. dxc4 Qxe5 $14) 16... Kg8) 16. Bxc5 {[%mdl 64] [#] Pin} Qa5 17. Bxd6+ Kg8 18. c4 f5 19. exf6 Qf5 20. Re1 {White is clearly winning.} Rh7 21. Be5 {[#] Threatens to win with g4.} c5 (21... Rf7 $142 22. g4 Qh7) 22. g4 {Weighted Error Value: White=0.22 (precise) /Black=0.51} 1-0

[Event "IX Famalicao Open 2022"]
[Site "Vila Nova de Famalicao"]
[Date "2022.07.25"]
[Round "1.2"]
[White "Cabete, Manuel"]
[Black "Spraggett, Kevin"]
[Result "1/2-1/2"]
[ECO "B48"]
[WhiteElo "1373"]
[BlackElo "2487"]
[Annotator "TA"]
[PlyCount "72"]
[EventDate "2022.07.25"]
[EventType "tourn"]
[EventCountry "POR"]
[SourceTitle "playchess.com"]
[Source "ChessBase"]
[SourceQuality "1"]
[TimeControl "5400+30"]

{[%evp 11,72,29,26,15,28,31,62,0,0,12,14,14,22,27,32,31,18,0,36,12,0,0,0,0,0,0,0,0,0,-38,-28,-53,-53,-81,-77,-33,-64,-73,0,0,0,0,0,0,0,0,0,0,0,0,0,-26,-27,-23,-4,-4,0,0,8,8,45,0,0]} 1. e4 {[%emt 0:00:06]} c5 {[%emt 0:00:15]} 2. Nf3 {[%emt 0:00:04]} e6 {[%emt 0:00:19]} 3. d4 {[%emt 0:00:07]} cxd4 {[%emt 0:00:06]} 4. Nxd4 {[%emt 0:00:08]} Nc6 {[%emt 0:00:08]} 5. Nc3 {[%emt 0:00:39]} Qc7 {[%emt 0:00:26]} 6. Be3 {[%emt 0:03:04]} a6 {[%emt 0:00:58]} 7. Qf3 {[%emt 0:02:56] B48: Sicilian: Taimanov: 5 Nc3 Qc7 6 Be3 a6 without Be2.} Nf6 {[%emt 0:01:49][%cal Of8a3]} 8. O-O-O {[%emt 0:16:11]} d6 {[%emt 0:02:57] 8...Rb8 is setting a new trend.} 9. Kb1 {[%emt 0:10:39] White is more active.} (9. Nxc6 $14 bxc6 10. Qg3) 9... Bd7 $11 {[%emt 0:03:26]} 10. Qg3 {[%emt 0:06:57]} Rc8 {[%emt 0:02:13][%cal Of6e4]} 11. f3 {[%emt 0:01:53]} Nxd4 {[%emt 0:06:37]} 12. Bxd4 {[%emt 0:02:42]} e5 {[%emt 0:00:11]} 13. Be3 {[%emt 0:01:09] [#]} b5 $146 {[%emt 0:00:47]} ({Predecessor:} 13... Be6 14. Qf2 h5 15. Bd3 Be7 16. h3 Qc6 17. g4 g6 18. Rhe1 hxg4 19. hxg4 Kf8 {1-0 (53) Ponomariov,R (2694)-Jaracz,P (2465) Katowice 2017}) 14. Qf2 {[%emt 0:02:30]} h6 {[%emt 0:07:18]} 15. Nd5 {[%emt 0:12:50]} Nxd5 {[%emt 0:00:29]} 16. Rxd5 {[%emt 0:00:31]} Be6 {[%emt 0:00:37]} 17. Rd2 {[%emt 0:01:34]} Be7 {[%emt 0:02:38]} 18. h4 {[%emt 0:01:35]} Qa5 {[%emt 0:06:40]} 19. b3 $1 {[%emt 0:03:00]} Qc3 {[%emt 0:05:41]} 20. Rd3 {[%emt 0:02:11]} Qc6 {[%emt 0:01:00]} 21. g3 {[%emt 0:04:22][%cal Bg2g3,Bg3g4,Bg4g5][%mdl 32]} O-O {[%emt 0:02:55]} 22. g4 {[%emt 0:02:20] Inhibits f5.} d5 {[%emt 0:01:26]} 23. exd5 {[%emt 0:06:56]} Bxd5 {[%emt 0:00:13]} 24. Bg2 {[%emt 0:00:48]} Rfd8 {[%emt 0:18:44]} (24... f5 $17 {White must now prevent ...fxg4.} 25. g5 e4 26. Rxd5 (26. fxe4 $2 fxe4 27. Rc3 Qxc3 $19) 26... f4) 25. g5 {[%emt 0:04:26]} h5 {[%emt 0:01:27]} 26. Rhd1 {[%emt 0:01:47]} e4 {[%emt 0:03:53]} 27. fxe4 {[%emt 0:01:08]} Bxe4 {[%emt 0:00:07]} 28. Rxd8+ {[%emt 0:01:03]} Bxd8 {[%emt 0:01:19]} 29. Bxe4 {[%emt 0:00:52]} Qxe4 {[%emt 0:00:02]} 30. Rf1 {[%emt 0:04:36]} Qg6 {[%emt 0:07:40]} 31. Qf5 {[%emt 0:01:09]} Qxf5 {[%emt 0:02:50]} 32. Rxf5 {[%emt 0:00:02]} Be7 {[%emt 0:00:35]} 33. Kc1 {[%emt 0:01:21]} Re8 {[%emt 0:03:17]} 34. Kd2 {[%emt 0:02:20]} Bd6 {[%emt 0:06:16]} 35. Bf2 {[%emt 0:02:22]} Be5 {[%emt 0:03:01]} 36. Rf3 {[%emt 0:01:02]} Rc8 {[%emt 0:03:11] Weighted Error Value: White=0.09 (flawless) /Black=0.08 (flawless)} 1/2-1/2

[Event "IX Famalicao Open 2022"]
[Site "Vila Nova de Famalicao"]
[Date "2022.07.25"]
[Round "1.4"]
[White "Camacho, Filipa Fernandes Bri"]
[Black "Petkov, Vladimir"]
[Result "0-1"]
[ECO "A00"]
[WhiteElo "1358"]
[BlackElo "2470"]
[Annotator "TA"]
[PlyCount "62"]
[EventDate "2022.07.25"]
[EventType "tourn"]
[EventCountry "POR"]
[SourceTitle "playchess.com"]
[Source "ChessBase"]
[SourceQuality "1"]
[TimeControl "5400+30"]

{[%evp 9,62,-95,-93,-93,-105,-90,-82,-88,-79,-88,-87,-81,-91,-121,-111,-257,-225,-362,-359,-352,-361,-361,-347,-353,-340,-343,-233,-245,-240,-322,-328,-297,-289,-483,-474,-539,-531,-536,-234,-406,-396,-894,-645,-1296,-1284,-29981,-29980,-29988,-29989,-29992,-29993,-1471,-1476,-29995,-29996]} 1. g3 d5 2. Bg2 Nc6 3. d3 e5 {[#]} 4. Bd2 $146 ({Predecessor:} 4. Nf3 Nf6 5. O-O h6 6. Nc3 Be6 7. a3 Qd7 8. b4 Bd6 9. Bb2 a5 10. b5 Ne7 11. d4 e4 12. Ne5 Qc8 13. f3 Nf5 14. fxe4 {0-1 (43) Lagarde,M (2648)-Indjic,A (2607) Europe Echecs INT 2021}) 4... Nf6 5. c4 dxc4 6. dxc4 {A00: Irregular Openings.} Bc5 7. e3 {Against Qd4} Be6 8. Qb3 {Black is better.} Rb8 {Black is more active.} 9. Ne2 O-O 10. O-O Qd7 {[%cal Ob7b5]} 11. Qb5 Be7 12. b3 {This move loses the game for White.} (12. Bc3 $17 {was worth a try.}) 12... Bh3 13. Rd1 (13. c5 $142) 13... Bxg2 $19 14. Kxg2 a6 15. Qa4 b5 (15... Qf5 $2 16. Nbc3 $19) 16. cxb5 axb5 17. Qh4 b4 {Prevents Nbc3.} 18. Qc4 Rfd8 19. Rc1 {[#]} Na5 20. Qxc7 Qd5+ (20... Qf5 21. Qxe7 Re8 22. Qc7 $16) 21. f3 $2 {[#]} (21. Kg1 Rb7 22. Qc2) 21... e4 $1 22. f4 (22. Qf4 Bd6) 22... Qh5 23. Nd4 {[#] Prevents Qf3+.} Nd5 ({Worse is} 23... Ng4 24. h3 Nf6 25. g4 (25. Qxe7 Rxd4 26. exd4 Qf3+ 27. Kh2 Qf2+ 28. Kh1 Qxg3 $11) 25... Nxg4 26. Qxe7 $11) ({Not} 23... Bd6 24. Qc2 $17) (23... Rxd4 $142 $1 {[%mdl 512]} 24. exd4 (24. Kg1 Rb7) 24... Qf3+ 25. Kh3 (25. Kg1 {leads to mate.} Ng4 26. Qxb8+ Bf8) 25... Re8) 24. Qc2 $2 (24. Qe5 Qxe5 25. fxe5) 24... Bf6 {[%cal Od5f4] And now ...Nxf4+! would win.} 25. Qxe4 (25. Qd1 Qxd1 26. Rxd1) 25... Bxd4 26. exd4 Re8 27. Qd3 Re2+ {[%mdl 64] Skewer, Deflection} 28. Kf1 Rbe8 29. g4 Qxh2 {[%csl Gh2][%cal Re2f2]} 30. Qf3 {[#]} h5 $1 {[%cal Oh5g4] ( -> ...hxg4!)} 31. gxh5 {[#]} (31. Rc8 Rxc8) 31... R8e3 $1 {[%mdl 512] Weighted Error Value: White=1.15/Black=0.16 (very precise)} 0-1

[Event "IX Famalicao Open 2022"]
[Site "Vila Nova de Famalicao"]
[Date "2022.07.25"]
[Round "1.5"]
[White "Das, Sayantan"]
[Black "Lopes, Tome Igreja"]
[Result "1-0"]
[ECO "A20"]
[WhiteElo "2449"]
[BlackElo "1348"]
[Annotator "TA"]
[PlyCount "47"]
[EventDate "2022.07.25"]
[EventType "tourn"]
[EventCountry "POR"]
[SourceTitle "playchess.com"]
[Source "ChessBase"]
[SourceQuality "1"]
[TimeControl "5400+30"]

{[%evp 9,47,9,21,-5,0,0,5,7,18,0,0,2,22,32,72,64,77,73,120,91,203,195,220,221,208,202,395,396,388,172,355,358,364,367,360,358,657,652,880,749]} 1. c4 {[%emt 0:00:40]} e5 {[%emt 0:00:12]} 2. g3 {[%emt 0:00:13]} Nf6 {[%emt 0:00:11]} 3. Bg2 {[%emt 0:00:07]} c6 {[%emt 0:00:16]} 4. d4 {[%emt 0:00:52]} exd4 {[%emt 0:03:37]} 5. Qxd4 {[%emt 0:00:43]} Qb6 {[%emt 0:04:15]} 6. Qe5+ {[%emt 0:05:47] A20: English Opening: 1...e5.} Be7 $1 {[%emt 0:00:15][%cal Ob6f2]} 7. Be3 {[%emt 0:00:19]} d6 {[%emt 0:06:05]} 8. Qc3 {[%emt 0:03:19] The position is equal.} Qd8 {[%emt 0:03:16] [#]} 9. Nd2 $146 {[%emt 0:04:30]} ({Predecessor:} 9. Nf3 O-O 10. O-O Ne4 11. Qc2 Ng5 12. Nxg5 Bxg5 13. f4 Bf6 14. Bf2 Re8 15. Nc3 Bxc3 16. bxc3 {1-0 (30) Schunk,T (2300)-Eppler,K Gruenheide 1996}) 9... O-O {[%emt 0:03:54]} 10. Nh3 {[%emt 0:02:03]} d5 {[%emt 0:15:00]} 11. Nf4 {[%emt 0:00:41]} Be6 {[%emt 0:02:31]} 12. Nxe6 {[%emt 0:03:26] White is more active.} fxe6 {[%emt 0:00:14]} 13. Bh3 {[%emt 0:00:39]} Qc8 {[%emt 0:04:35]} ({Black should play} 13... Na6) 14. Qe5 {[%emt 0:00:24]} Kf7 {[%emt 0:03:01]} (14... Qe8 $16 {might work better.}) 15. Nf3 $18 {[%emt 0:00:49]} Bb4+ {[%emt 0:00:44] [#]} 16. Kf1 $1 {[%emt 0:00:44]} h6 {[%emt 0:01:33]} 17. Rc1 {[%emt 0:01:58] aiming for a3.} Re8 $2 {[%emt 0:09:06]} (17... Qd7 {was worth a try.} 18. Bf4 Na6) 18. cxd5 {[%emt 0:06:21]} Nxd5 {[%emt 0:02:02] [#]} 19. Bd4 {[%emt 0:00:07]} ({Weaker is} 19. a3 Bf8 20. Qh5+ Kg8 $16) (19. Bxh6 $142 $1 {[%mdl 512]} gxh6 20. Qh5+ Ke7 21. e4 (21. Ne5 Nd7 $11)) 19... Bf8 {[%emt 0:03:52]} (19... Nf6 20. Qf4 Be7) 20. Qh5+ {[%emt 0:00:30]} Kg8 {[%emt 0:04:52]} 21. Ne5 {[%emt 0:01:05]} Re7 {[%emt 0:06:41] Against Qf7+} 22. Ng6 {[%emt 0:00:40][%cal Oh5d5] Threatens to win with Qxd5!} ({Resist} 22. Bc5 Nf6 23. Qg6 Nbd7 $18) 22... Rf7 $2 {[%emt 0:03:08] [#]} (22... Qd7 23. e4 (23. Qf3 Re8 $16) 23... Nc7) 23. Qxd5 $3 {[%emt 0:00:31][%mdl 512]} Qe8 {[%emt 0:01:16]} (23... exd5 24. Bxc8) 24. Qxe6 {[%emt 0:00:29] Weighted Error Value: White=0.17 (very precise) /Black=0.69} 1-0

[Event "IX Famalicao Open 2022"]
[Site "Vila Nova de Famalicao"]
[Date "2022.07.25"]
[Round "1.6"]
[White "Marques, Joao Paulo Cassemiro"]
[Black "Abdisalimov, Abdimalik"]
[Result "0-1"]
[ECO "A46"]
[WhiteElo "2226"]
[BlackElo "2437"]
[Annotator "TA"]
[PlyCount "100"]
[EventDate "2022.07.25"]
[EventType "tourn"]
[EventCountry "POR"]
[SourceTitle "playchess.com"]
[Source "ChessBase"]
[SourceQuality "1"]
[TimeControl "5400+30"]

{[%evp 9,100,0,0,0,-4,-34,-10,-17,0,-35,-39,-38,-28,-27,-21,-29,-27,-104,-110,-169,-136,-141,-118,-143,-131,-154,-138,-145,-145,-134,-139,-181,-172,-192,-196,-241,-202,-200,-182,-189,-170,-250,-216,-206,-203,-291,-289,-485,-436,-454,-437,-443,-454,-439,-451,-421,-412,-933,-933,-904,-911,-877,-908,-841,-712,-901,-891,-1008,-1008,-992,-986,-980,-972,-1083,-1042,-2084,-4900,-5014,-3202,-29979,-29980,-29977,-29978,-29977,-29977,-29982,-29983,-29983,-29984,-29984,-29985,-29984,-12842]} 1. d4 Nf6 2. Nf3 e6 3. Bf4 d5 4. e3 c5 5. c4 cxd4 6. exd4 {D02: 1 d4 d5 2 Nf3 sidelines, including 2...Nf6 3 g3 and 2...Nf6 3 Bf4.} Bb4+ 7. Bd2 Be7 8. Nc3 {The position is equal.} O-O 9. Bd3 dxc4 10. Bxc4 Nc6 11. Be3 b6 12. O-O Bb7 {[#]} 13. d5 $146 (13. Qe2 $11 {remains equal.}) ({Predecessor:} 13. Rc1 Rc8 14. Qe2 Bd6 15. Rfd1 h6 16. Ne5 Qe7 17. f4 Rfd8 18. a3 Na5 19. Bb5 Nd5 20. Nxd5 Bxd5 21. b4 Nb3 22. Rc4 Rc7 23. Qd3 Rdc8 24. Ba6 Bxe5 25. Rxc7 Rxc7 {½-½ (24) Yeremeyeev,A-Griesche,V DESC email 2011}) 13... Na5 $17 {[%csl LRc4,LRd5] White is now going downhill.} 14. d6 (14. Bb5 $17) 14... Bxd6 15. Be2 Ng4 16. Qd4 Nxe3 17. Qxe3 Qf6 18. Ne4 Bxe4 19. Qxe4 {[#] And now b4 would win.} Qxb2 20. Bd3 {[%csl Gd3][%cal Re4h7]} g6 21. Qh4 Rad8 {[%cal Od6h2]} 22. Rab1 Qg7 {[%cal Od6h2]} 23. Rfd1 Nc6 {[%cal Ba5c6,Bc6d4,Bd4e2,Be2f4,Bf4g2][%mdl 32]} 24. Bc4 Be7 25. Qh3 (25. Qe4 $142 Rxd1+ 26. Rxd1) 25... Qf6 26. Qg3 Bc5 27. Qc7 (27. Qg5 $142 Qxg5 28. Nxg5) 27... Nd4 $19 28. Rd3 (28. Qb7 {was worth a try.}) 28... Ne2+ 29. Kf1 Nf4 30. Rxd8 Rxd8 {[%cal Bf8d8,Bd8d2,Bd2f2,Bf2f5,Bf5d5][%mdl 32]} 31. Qe5 Qxe5 32. Nxe5 Rd2 33. g3 (33. Ng4 $142) 33... Rxf2+ 34. Ke1 Ng2+ 35. Kd1 Ne3+ 36. Ke1 Rf5 37. Nd7 Nxc4 38. Ke2 Bd4 {...b5 is the strong threat.} 39. Kd3 Rd5 40. Kxc4 Rxd7 {[%mdl 4096] Endgame KRB-KR} 41. Rd1 e5 {[%cal Be6e5,Be5e4,Be4e3][%mdl 32]} 42. Kb5 e4 43. Kc4 {[#]} e3 $1 44. Kd3 (44. h4 e2) 44... Bc5+ {Black mates.} 45. Ke2 Rxd1 46. Kxd1 f5 {[%cal Bf7f5,Bf5f4][%mdl 32]} 47. Ke2 g5 {[%cal Bg6g5,Bg5g4][%mdl 32]} 48. Kf3 g4+ 49. Ke2 h5 50. a4 f4 {Weighted Error Value: White=0.53/Black=0.13 (very precise)} 0-1

[Event "IX Famalicao Open 2022"]
[Site "Vila Nova de Famalicao"]
[Date "2022.07.25"]
[Round "1.7"]
[White "Nigmatov, Ortik"]
[Black "Pacheco, Joao"]
[Result "1-0"]
[ECO "B32"]
[WhiteElo "2437"]
[BlackElo "2040"]
[Annotator "TA"]
[PlyCount "39"]
[EventDate "2022.07.25"]
[EventType "tourn"]
[EventCountry "POR"]
[SourceTitle "playchess.com"]
[Source "ChessBase"]
[SourceQuality "1"]
[TimeControl "5400+30"]

{[%evp 14,39,0,0,0,0,8,0,9,20,163,157,243,243,262,136,139,133,222,208,427,392,912,885,5906,2395,29993,29994]} 1. e4 c5 2. Nf3 Nc6 3. d4 cxd4 4. Nxd4 e5 5. Nxc6 bxc6 6. Nc3 Nf6 7. Bc4 Bb4 8. O-O Bxc3 {B33: Sicilian: Pelikan and Sveshnikov Variations.} 9. bxc3 Nxe4 (9... d5 10. exd5 cxd5 11. Bb5+ Bd7 12. Bxd7+ Nxd7 13. Qxd5 $14) 10. Ba3 d5 {The position is equal.} 11. Bd3 $40 {[%cal Bc4d3,Bd3e4,Be4d5][%mdl 160] [#] White has some attack. A strong pair of Bishops.} Nd6 $146 {Prevents c4. This move loses the game for Black.} (11... Nxc3 $2 12. Qe1 Nb5 13. Qxe5+ Be6 14. Qxg7 $18) (11... Qa5 $11 12. Bb4 Qc7) ({Predecessor:} 11... Nf6 12. Re1 e4 13. f3 Bf5 14. c4 Qb6+ 15. Kh1 O-O-O 16. Be2 exf3 17. Bxf3 Ne4 18. Bxe4 Bxe4 {1-0 (30) Frois,V (1642)-Vieira,P (1900) Sao Paulo 2014}) 12. Qh5 $18 {[%csl LRe5,LRh7]} e4 (12... Qf6 $16 {was called for.}) 13. Qe5+ Be6 14. Qxg7 (14. Qxd6 Qxd6 15. Bxd6 exd3 $11) ({Better is} 14. Bxd6 $18 exd3 15. cxd3) 14... Kd7 $16 15. Bxd6 {[%cal Od6g3] Strongly threatening Bg3!} Kxd6 (15... Rg8 $16 16. Qd4 (16. Qe5 exd3 17. Bc5 Qb8 $11) 16... exd3) 16. Bxe4 $1 $18 Qh4 $2 {[#]} (16... Rg8 17. Qd4 (17. Qxh7 Qf6 $19) 17... Qb6) 17. f4 $1 {Hoping for Qe5+.} c5 $2 (17... dxe4 $2 18. Qe5+ Kd7 19. Rad1+ Bd5 20. Rxd5+ (20. c4 Qe7 $16) 20... cxd5 21. Rd1 $18) (17... Qd8 18. Bd3 (18. Qd4 Qb6 $16) 18... f6) (17... Rhg8 18. Qe5+) 18. Qe5+ Kd7 19. Bxd5 Rae8 20. Rab1 {Weighted Error Value: White=0.14 (very precise) /Black=1.20} 1-0

[Event "IX Famalicao Open 2022"]
[Site "Vila Nova de Famalicao"]
[Date "2022.07.25"]
[Round "1.8"]
[White "Alves, Damiao Fernando"]
[Black "Krishna C R G"]
[Result "0-1"]
[ECO "B00"]
[WhiteElo "1316"]
[BlackElo "2430"]
[Annotator "TA"]
[PlyCount "36"]
[EventDate "2022.07.25"]
[EventType "tourn"]
[EventCountry "POR"]
[SourceTitle "playchess.com"]
[Source "ChessBase"]
[SourceQuality "1"]
[TimeControl "5400+30"]

{[%evp 15,36,56,68,20,41,0,1,-64,9,-35,-2,-37,-19,-32,-25,-52,-65,-88,-60,-493,-497,-477,-434]} 1. e4 d6 2. d4 {[%cal Bd2d4,Bd4d5][%mdl 32]} Nf6 3. Bd3 e5 4. Nf3 Nc6 5. d5 Ne7 6. c4 g6 7. Nc3 Bg7 8. O-O O-O 9. b4 {E90: King's Indian: Classical: Early deviations and 6 h3.} (9. h3 $14) 9... Nh5 {[%cal Bf6h5,Bh5f4,Bf4h3,Bh3f2][%mdl 32] [#]} 10. Nd2 $146 ({Predecessor:} 10. Bb2 Nf4 11. Ne2 Nxd3 12. Qxd3 f5 13. exf5 e4 {0-1 (13) Ziemann,U (1803)-Basel,M (1989) Bayern 2017}) 10... Nf4 11. Bc2 {[#]} ({White should try} 11. Nb3 $11) 11... f5 {Black is more active.} (11... Bh3 $1 $15 12. gxh3 (12. g3 Bxf1) 12... Nexd5 $1 {[%mdl 512]}) 12. Ba3 b6 13. c5 fxe4 14. Ndxe4 Nf5 {And now ...Qh4 would win.} 15. g3 {Prevents Qh4.} Nh3+ 16. Kg2 $1 Bh6 {[%cal Oh3f2] aiming for ...Nxf2!} 17. cxd6 $2 {[%mdl 8192] [#]} (17. Bc1 $15) 17... Nxf2 $1 $19 {[%mdl 512]} 18. dxc7 Qxc7 {Black took control after the opening.  Weighted Error Value: White=0.75/Black=0.20 (precise)} ({Stronger than} 18... Nxd1 19. cxd8=Q Nde3+ 20. Kh1 Rxd8 21. Rf2 $17) ({Don't blunder} 18... Ne3+ $2 19. Kg1 Qxc7 20. Rxf2 $19) 0-1

[Event "IX Famalicao Open 2022"]
[Site "Vila Nova de Famalicao"]
[Date "2022.07.25"]
[Round "1.9"]
[White "Akhvlediani, Irakli"]
[Black "Lachever, Diogo Freire"]
[Result "1-0"]
[ECO "A50"]
[WhiteElo "2429"]
[BlackElo "1303"]
[Annotator "TA"]
[PlyCount "65"]
[EventDate "2022.07.25"]
[EventType "tourn"]
[EventCountry "POR"]
[SourceTitle "playchess.com"]
[Source "ChessBase"]
[SourceQuality "1"]
[TimeControl "5400+30"]

{[%evp 9,65,44,63,30,43,43,53,38,80,76,79,21,66,60,56,91,83,65,121,133,114,114,110,114,188,177,171,160,205,214,266,210,464,478,476,459,451,479,710,735,1917,431,1885,1837,1605,864,2377,585,2185,2158,2917,2708,2695,2348,2251,2214,29993,29994]} 1. d4 {[%emt 0:00:04]} Nf6 {[%emt 0:00:07]} 2. c4 {[%emt 0:00:05]} b6 {[%emt 0:00:26]} 3. Nc3 {[%emt 0:00:29]} Bb7 {[%emt 0:00:39]} 4. f3 {[%emt 0:00:18][%cal Bf2f3,Bf3f4][%mdl 32]} e6 {[%emt 0:00:56]} 5. e4 {[%emt 0:00:04][%cal Be2e4,Be4e5][%mdl 32]} d5 {[%emt 0:02:38]} 6. e5 {[%emt 0:01:41] A50: Queen's Fianchetto Defence (1 d4 Nf6 2 c4 b6).} Nfd7 {[%emt 0:00:29]} 7. cxd5 {[%emt 0:00:05]} exd5 {[%emt 0:00:18]} 8. f4 {[%emt 0:00:11] White is slightly better.} Be7 {[%emt 0:02:24]} 9. Nf3 {[%emt 0:00:05]} c5 {[%emt 0:00:49] [#]} 10. dxc5 $146 {[%emt 0:01:27]} (10. Bb5 $16) ({Predecessor:} 10. Be3 O-O 11. Bd3 Nc6 12. O-O cxd4 13. Nxd4 Nxd4 14. Bxd4 Bc5 15. Ne2 Qe7 16. Kh1 {0-1 (34) Ivanchuk,V (2710)-Mamedyarov,S (2747) Huaian 2016}) 10... Bxc5 {[%emt 0:03:22]} 11. Bd3 {[%emt 0:02:50]} Nc6 {[%emt 0:11:07]} 12. a3 {[%emt 0:00:09] Against Nb4. White stays focused until the end.} a5 {[%emt 0:05:22] Prevents b4.} 13. Qe2 {[%emt 0:03:24]} Nd4 {[%emt 0:02:49]} ({Black should try} 13... O-O $14) 14. Nxd4 $16 {[%emt 0:00:14]} Bxd4 {[%emt 0:00:12]} 15. Nb5 {[%emt 0:08:24]} Bc5 {[%emt 0:00:43]} 16. Rb1 {[%emt 0:10:41][%cal Ba1b1,Bb1b3,Bb3h3][%mdl 32] b4 is the strong threat. White is more active.} O-O {[%emt 0:01:34] [#]} (16... a4 $16) 17. b4 $1 $18 {[%emt 0:00:07]} (17. Qh5 g6 18. Qh3 Qe7 $11) 17... axb4 {[%emt 0:00:41]} 18. axb4 {[%emt 0:00:07]} Be7 {[%emt 0:00:29]} (18... Qh4+ 19. g3 Qh3 20. bxc5) 19. O-O {[%emt 0:00:06]} (19. Qh5 g6 20. Qe2 Nb8 $14) 19... d4 {[%emt 0:08:51]} 20. Rb3 $40 {[%emt 0:05:38][%mdl 128] White goes for the king.} ({Weaker is} 20. Nxd4 {[#]} Nxe5 $1 21. fxe5 (21. Qxe5 Bf6 $17) 21... Qxd4+ 22. Kh1 (22. Be3 Qxe5 23. Bxb6 Qxe2 $11) 22... Rad8 $15) 20... Bd5 $2 {[%emt 0:03:20] [#]} (20... g6 {was worth a try.} 21. Bc4 (21. Nxd4 Nxe5 22. Nf5 Nc6 $11) 21... Rc8) 21. Bxh7+ $1 {[%emt 0:06:23][%mdl 512]} Kxh7 {[%emt 0:01:50]} 22. Rh3+ {[%emt 0:00:07]} Kg8 {[%emt 0:00:09]} 23. Qh5 {[%emt 0:00:21][%csl Gh3][%cal Rh5h7]} f6 {[%emt 0:01:12]} (23... f5 $142 24. Nxd4 Ra2 25. Qh7+ Kf7 26. e6+ Bxe6 27. Qh5+ g6 28. Qh7+ Kf6 29. Qh4+ Kf7 30. Qh7+ Kf6 31. Qh4+ Kf7 32. Qh7+) 24. Nxd4 {[%emt 0:00:22][%cal Bb5d4,Bd4e6,Be6f8,Bf8e6][%mdl 32]} Ra2 {[%emt 0:03:03]} 25. Qh7+ {[%emt 0:01:26]} ({Don't blunder} 25. e6 $2 Rxg2+ 26. Kh1 Rg5+ 27. Qf3 Bxf3+ $19) 25... Kf7 {[%emt 0:00:09]} 26. e6+ {[%emt 0:00:03]} Bxe6 {[%emt 0:00:45]} 27. Qh5+ {[%emt 0:00:12]} g6 {[%emt 0:02:07]} 28. Qh7+ {[%emt 0:00:02][%mdl 64] Deflection} Ke8 {[%emt 0:00:09]} 29. Nxe6 {[%emt 0:00:05]} Qc8 {[%emt 0:01:24]} 30. Qxg6+ {[%emt 0:00:12]} Rf7 {[%emt 0:00:12]} 31. Rh8+ {[%emt 0:01:32]} Nf8 {[%emt 0:01:08]} 32. Nxf8 {[%emt 0:00:06] White threatens Nh7+ and mate.} Rc2 {[%emt 0:01:02]} 33. Ne6+ {[%emt 0:00:12] Weighted Error Value: White=0.13 (very precise) /Black=0.74} 1-0